bitfinex/quotes_ETHUSD_20230105
["timestamp","ask_amount","ask_price","bid_price","bid_amount"]
[1672953527539,7.67326005,1253.9,1253.8,23.97493977]
[1672953527741,3.5893991,1253.9,1253.8,24.04093977]
[1672953527952,3.5853991,1253.9,1253.8,24.04093977]
[1672953529451,3.5853991,1253.9,1253.8,16.06518977]
[1672953530869,3.5853991,1253.9,1253.8,8.08943977]
[1672953537408,3.5853991,1253.9,1253.8,24.04093977]
[1672953537879,3.5853991,1253.9,1253.8,16.06518977]
[1672953539091,3.5853991,1253.9,1253.8,8.08943977]
[1672953541395,3.5853991,1253.9,1253.8,16.06518977]
[1672953541867,3.5853991,1253.9,1253.8,8.08943977]
[1672953545414,3.5853991,1253.9,1253.8,8.0870153]
[1672953546368,3.58262759,1253.9,1253.8,8.0870153]
[1672953555071,3.58262759,1253.9,1253.8,24.0385153]
[1672953555284,3.58262759,1253.9,1253.8,16.0627653]
[1672953560695,3.58262759,1253.9,1253.8,24.0385153]
[1672953561275,3.58262759,1253.9,1253.8,16.0627653]
[1672953567443,3.58262759,1253.9,1253.8,0.1112653]
[1672953567602,7.82248885,1253.9,1253.8,0.0452653]
[1672953567812,12.21897126,1253.9,1253.8,0.0452653]
[1672953568286,15.80694018,1253.9,1253.8,0.0452653]
[1672953569291,12.21897126,1253.9,1253.8,0.0452653]
[1672953569503,7.83179694,1253.9,1253.8,0.0452653]
[1672953569743,15.80690699,1253.9,1253.8,0.0452653]
[1672953570014,20.19408126,1253.9,1253.8,0.04251447]
[1672953570565,12.21897126,1253.9,1253.8,0.04251447]
[1672953570765,20.19408126,1253.9,1253.8,0.04251447]
[1672953573442,12.21897126,1253.9,1253.8,0.04251447]
[1672953573620,20.19408126,1253.9,1253.8,0.04251447]
[1672953573816,12.21897126,1253.9,1253.8,0.04251447]
[1672953574034,20.19408126,1253.9,1253.8,0.04251447]
[1672953574238,23.7818103,1253.9,1253.8,0.04251447]
[1672953574592,24.38131652,1253.9,1253.8,0.04251447]
[1672953575406,16.40620652,1253.9,1253.8,0.04251447]
[1672953575623,24.38131652,1253.9,1253.8,0.04251447]
[1672953576025,16.40620652,1253.9,1253.8,0.04251447]
[1672953576269,24.38131652,1253.9,1253.8,0.04251447]
[1672953577272,20.19408126,1253.9,1253.8,0.04251447]
[1672953577473,16.40620652,1253.9,1253.8,0.04251447]
[1672953577932,24.38131652,1253.9,1253.8,0.04251447]
[1672953578541,12.21897126,1253.9,1253.8,0.04251447]
[1672953578952,20.19408126,1253.9,1253.8,0.04251447]
[1672953579403,12.21897126,1253.9,1253.8,0.04251447]
[1672953579611,20.19408126,1253.9,1253.8,0.04251447]
[1672953580044,12.21897126,1253.9,1253.8,0.04251447]
[1672953580262,20.19408126,1253.9,1253.8,0.04251447]
[1672953580473,16.40620652,1253.9,1253.8,0.04251447]
[1672953580624,24.38131652,1253.9,1253.8,0.04251447]
[1672953581191,16.40620652,1253.9,1253.8,0.04251447]
[1672953581524,24.38131652,1253.9,1253.8,0.04251447]
[1672953583052,12.21897126,1253.9,1253.8,0.04251447]
[1672953583264,16.40620652,1253.9,1253.8,0.04251447]
[1672953583478,24.38131652,1253.9,1253.8,0.04251447]
[1672953583684,32.35642652,1253.9,1253.8,0.04251447]
[1672953584144,45.33153652,1253.9,1253.8,0.04251447]
[1672953584367,21.40620652,1253.9,1253.8,0.04251447]
[1672953584679,21.45620652,1253.9,1253.8,0.04251447]
[1672953584890,22.00480652,1253.9,1253.8,0.04251447]
[1672953585122,14.02969652,1253.9,1253.8,0.04251447]
[1672953585630,14.02969652,1253.9,1253.8,23.96976447]
[1672953585631,9.84246126,1253.9,1253.8,23.96976447]
[1672953585797,9.84246126,1253.9,1253.8,8.08426447]
[1672953586362,4.84246126,1253.9,1253.8,8.08426447]
[1672953586678,4.84046126,1253.9,1253.8,8.08226447]
[1672953586838,4.83846126,1253.9,1253.8,8.08426447]
[1672953587041,8.42459936,1253.9,1253.8,8.08426447]
[1672953587250,8.42859936,1253.9,1253.8,8.08426447]
[1672953587482,4.84246126,1253.9,1253.8,8.08426447]
[1672953587787,4.83846126,1253.9,1253.8,8.08426447]
[1672953588342,8.42451014,1253.9,1253.8,8.08426447]
[1672953588569,8.42851014,1253.9,1253.8,8.08426447]
[1672953588955,7.82991014,1253.9,1253.8,8.08426447]
[1672953589494,7.82991014,1253.9,1253.8,24.03576447]
[1672953589943,7.82991014,1253.9,1253.8,16.06001447]
[1672953590135,7.82991014,1253.9,1253.8,16.05785117]
[1672953591379,3.59004888,1253.9,1253.8,16.05785117]
[1672953591584,3.58604888,1253.9,1253.8,16.05785117]
[1672953592281,3.58604888,1253.9,1253.8,8.08210117]
[1672953592847,3.63604888,1253.9,1253.8,8.08210117]
[1672953593062,3.58604888,1253.9,1253.8,8.08210117]
[1672953594435,7.08864026,1253.9,1253.8,8.08210117]
[1672953594645,3.59004888,1253.9,1253.8,16.05785117]
[1672953594855,3.58604888,1253.9,1253.8,16.05785117]
[1672953596177,3.58604888,1253.9,1253.8,8.08210117]
[1672953596329,3.58616265,1253.9,1253.8,8.08210117]
[1672953596538,3.58616265,1253.9,1253.8,0.10635117]
[1672953596539,12.16234526,1253.9,1253.8,0.10635117]
[1672953596802,16.10787776,1253.9,1253.8,0.04035117]
[1672953597021,8.13276776,1253.9,1253.8,0.04035117]
[1672953597187,3.9455325,1253.9,1253.8,0.04035117]
[1672953597398,11.9166425,1253.9,1253.8,0.04035117]
[1672953597719,11.9206425,1253.9,1253.8,0.04035117]
[1672953597931,32.05809776,1253.9,1253.8,0.04035117]
[1672953600594,8.13276776,1253.9,1253.8,0.04035117]
[1672953600837,8.13276776,1253.9,1253.8,8.01610117]
[1672953600975,8.13276776,1253.9,1253.8,8.08210117]
[1672953601184,3.9455325,1253.9,1253.8,8.08210117]
[1672953601412,3.9415325,1253.9,1253.8,8.08210117]
[1672953601606,7.52789309,1253.9,1253.8,16.05785117]
[1672953601839,3.9455325,1253.9,1253.8,16.05785117]
[1672953602053,7.52791076,1253.9,1253.8,16.05785117]
[1672953602236,7.53191076,1253.9,1253.8,16.05785117]
[1672953602877,7.53191076,1253.9,1253.8,0.10635117]
[1672953603100,3.9455325,1253.9,1253.8,0.04035117]
[1672953603310,3.9415325,1253.9,1253.8,0.04035117]
[1672953603907,3.9415325,1253.9,1253.8,8.01610117]
[1672953604148,3.9415325,1253.9,1253.8,8.08210117]
[1672953604316,3.9415325,1253.9,1253.8,0.10635117]
[1672953604527,3.9415325,1253.9,1253.8,0.04035117]
[1672953604737,7.52847605,1253.9,1253.8,8.01610117]
[1672953604947,3.9455325,1253.9,1253.8,8.08210117]
[1672953605213,8.12876776,1253.9,1253.8,8.08210117]
[1672953605376,3.9455325,1253.9,1253.8,8.08210117]
[1672953605587,3.9415325,1253.9,1253.8,8.08210117]
[1672953607255,8.12876776,1253.9,1253.8,8.08210117]
[1672953607469,8.13276776,1253.9,1253.8,8.08210117]
[1672953607801,8.13276776,1253.9,1253.8,0.10635117]
[1672953608017,8.13276776,1253.9,1253.8,0.04035117]
[1672953608878,8.13276776,1253.9,1253.8,8.01610117]
[1672953609086,8.13276776,1253.9,1253.8,8.08210117]
[1672953611328,8.13276776,1253.9,1253.8,0.10635117]
[1672953611538,8.13276776,1253.9,1253.8,0.04035117]
[1672953613022,8.13276776,1253.9,1253.8,0.03817898]
[1672953614466,8.13276776,1253.9,1253.8,8.01392898]
[1672953614643,8.13276776,1253.9,1253.8,8.07992898]
[1672953615377,8.13276776,1253.9,1253.8,0.10417898]
[1672953615675,8.13276776,1253.9,1253.8,0.03817898]
[1672953616007,8.13276776,1253.9,1253.8,8.01392898]
[1672953616325,8.13276776,1253.9,1253.8,8.07992898]
[1672953618307,8.13276776,1253.9,1253.8,0.10417898]
[1672953618558,3.5,1253.8,1253.7,0.13021347]
[1672953618769,30.28880164,1253.8,1253.7,0.06421347]
[1672953619055,6.36555164,1253.8,1253.7,0.06421347]
[1672953619302,2.18218411,1253.8,1253.7,0.06421347]
[1672953619516,2.17818411,1253.8,1253.7,0.06421347]
[1672953620888,5.76356662,1253.8,1253.7,16.01697347]
[1672953621099,3.58938251,1253.8,1253.7,16.08297347]
[1672953621254,3.58538251,1253.8,1253.7,16.08297347]
[1672953621944,3.58538251,1253.8,1253.7,24.05935347]
[1672953623591,3.58538251,1253.8,1253.7,32.03573347]
[1672953623992,3.58538251,1253.8,1253.7,24.05935347]
[1672953626425,3.58538251,1253.8,1253.7,32.03573347]
[1672953626621,3.58538251,1253.8,1253.7,24.05935347]
[1672953630038,3.58538251,1253.8,1253.7,32.03573347]
[1672953630570,3.58538251,1253.8,1253.7,24.05935347]
[1672953631868,3.58538251,1253.8,1253.7,32.03573347]
[1672953633007,3.58538251,1253.8,1253.7,24.05935347]
[1672953633979,3.63538251,1253.8,1253.7,24.05935347]
[1672953634193,3.58538251,1253.8,1253.7,24.05935347]
[1672953638617,3.58538251,1253.8,1253.7,24.05616302]
[1672953639033,3.58738251,1253.8,1253.7,24.05416302]
[1672953639248,3.58538251,1253.8,1253.7,24.05616302]
[1672953647761,3.58538251,1253.8,1253.7,16.07978302]
[1672953648244,4.36959448,1253.8,1253.7,16.07978302]
[1672953648448,0.83421197,1253.8,1253.7,16.07978302]
[1672953648608,0.78421197,1253.8,1253.7,16.07978302]
[1672953649065,4.36985009,1253.8,1253.7,16.07978302]
[1672953649642,4.36985009,1253.8,1253.7,0.12702302]
[1672953649790,0.78421197,1253.8,1253.7,0.06102302]
[1672953650000,4.36956315,1253.8,1253.7,0.06102302]
[1672953650258,0.78421197,1253.8,1253.7,0.06102302]
[1672953650476,4.9675795,1253.8,1253.7,0.06102302]
[1672953650685,4.36918405,1253.8,1253.7,0.06102302]
[1672953650876,4.36918887,1253.8,1253.7,0.06102302]
[1672953651969,4.36918887,1253.8,1253.7,8.03740302]
[1672953652120,4.36918887,1253.8,1253.7,8.10340302]
[1672953654889,4.36903067,1253.8,1253.7,8.10340302]
[1672953655054,0.78421197,1253.8,1253.7,8.10340302]
[1672953655264,4.36899678,1253.8,1253.7,0.12702302]
[1672953655494,0.78421197,1253.8,1253.7,0.06102302]
[1672953656341,4.36880026,1253.8,1253.7,0.06102302]
[1672953656555,0.78421197,1253.8,1253.7,8.03740302]
[1672953656768,0.78421197,1253.8,1253.7,0.12702302]
[1672953656945,0.78421197,1253.8,1253.7,0.06102302]
[1672953657157,4.9675795,1253.8,1253.7,0.06102302]
[1672953657399,0.78421197,1253.8,1253.7,0.06102302]
[1672953657610,4.9675795,1253.8,1253.7,0.06102302]
[1672953658060,0.78421197,1253.8,1253.7,0.06102302]
[1672953658199,4.9675795,1253.8,1253.7,0.06102302]
[1672953658619,0.78421197,1253.8,1253.7,0.06102302]
[1672953658897,8.75996197,1253.8,1253.7,0.06102302]
[1672953659079,8.76396197,1253.8,1253.7,0.06102302]
[1672953659248,12.9473295,1253.8,1253.7,0.06102302]
[1672953660046,0.78821197,1253.8,1253.7,0.06102302]
[1672953660363,4.36852982,1253.8,1253.7,0.06102302]
[1672953660799,4.41852982,1253.8,1253.7,8.03740302]
[1672953661016,4.36852982,1253.8,1253.7,8.10340302]
[1672953661369,4.36852982,1253.8,1253.7,16.07978302]
[1672953662582,4.36852982,1253.8,1253.7,16.0776748]
[1672953662958,4.36852982,1253.8,1253.7,8.1012948]
[1672953668020,4.31724383,1253.8,1253.7,0.1249148]
[1672953668301,4.31724383,1253.8,1253.7,0.0589148]
[1672953669443,4.31724383,1253.8,1253.7,8.0352948]
[1672953669656,4.31724383,1253.8,1253.7,8.1012948]
[1672953669977,4.31619639,1253.8,1253.7,0.1249148]
[1672953670120,4.31619639,1253.8,1253.7,0.0589148]
[1672953671022,4.31619639,1253.8,1253.7,8.0352948]
[1672953671225,3.58327041,1253.8,1253.7,0.1249148]
[1672953671401,3.58327041,1253.8,1253.7,0.0589148]
[1672953672893,28.18290723,1253.9,1253.7,0.0589148]
[1672953673099,3.58346524,1253.8,1253.7,0.0589148]
[1672953673502,7.08350177,1253.8,1253.7,0.0589148]
[1672953673857,3.58750177,1253.8,1253.7,0.0589148]
[1672953674043,3.58350177,1253.8,1253.7,0.0589148]
[1672953674238,12.23187723,1253.9,1253.7,8.0352948]
[1672953674444,3.58341415,1253.8,1253.7,8.1012948]
[1672953674657,3.58341415,1253.8,1253.7,16.0776748]
[1672953675324,7.75673723,1253.9,1253.7,16.0776748]
[1672953675650,3.58344378,1253.8,1253.7,8.1012948]
[1672953676009,3.58344378,1253.8,1253.7,16.0776748]
[1672953676478,4.18336753,1253.8,1253.7,0.1249148]
[1672953676703,15.73205723,1253.9,1253.7,0.0589148]
[1672953676843,3.5830436,1253.8,1253.7,8.0352948]
[1672953677213,3.5830436,1253.8,1253.7,8.1012948]
[1672953679965,20.20738723,1253.9,1253.7,8.1012948]
[1672953680157,12.17005723,1253.9,1253.7,8.1012948]
[1672953680518,4.19473723,1253.9,1253.7,16.0776748]
[1672953680733,7.69073723,1253.9,1253.7,16.0776748]
[1672953680889,15.66985723,1253.9,1253.7,0.1249148]
[1672953681105,15.66985723,1253.9,1253.7,0.0589148]
[1672953681325,23.64515723,1253.9,1253.7,0.0589148]
[1672953681536,4.18336753,1253.8,1253.7,0.0589148]
[1672953681726,20.13486753,1253.8,1253.7,0.0589148]
[1672953681938,20.13886753,1253.8,1253.7,0.0589148]
[1672953682609,12.16311753,1253.8,1253.7,0.0589148]
[1672953683992,20.13886753,1253.8,1253.7,0.0589148]
[1672953684769,28.11461753,1253.8,1253.7,0.0589148]
[1672953686139,20.13886753,1253.8,1253.7,0.0589148]
[1672953687209,28.11461753,1253.8,1253.7,0.0589148]
[1672953688463,20.13886753,1253.8,1253.7,0.0589148]
[1672953688680,32.22467611,1253.8,1253.7,0.05623581]
[1672953689426,16.27317611,1253.8,1253.7,0.05623581]
[1672953690064,8.29742611,1253.8,1253.7,0.05623581]
[1672953691673,8.34742611,1253.8,1253.7,0.05623581]
[1672953691885,8.29742611,1253.8,1253.7,0.05623581]
[1672953694872,32.22467611,1253.8,1253.7,0.05623581]
[1672953695709,37.22467611,1253.8,1253.7,0.05623581]
[1672953698928,17.08980858,1253.8,1253.7,5.81e-06]
[1672953699139,42.92563782,1253.8,1253.6,0.0902927]
[1672953699455,3.5,1253.7,1253.6,2.7e-06]
[1672953699772,3.5,1253.7,1253.5,0.05684057]
[1672953699773,27.43114,1253.7,1253.5,0.05684057]
[1672953699973,4.17911563,1253.6,1253.5,0.05684057]
[1672953700183,12.15613563,1253.6,1253.5,0.05684057]
[1672953700357,20.73585563,1253.6,1253.5,0.05684057]
[1672953700561,16.55674,1253.6,1253.5,0.05684057]
[1672953700773,8.57972,1253.6,1253.5,0.05684057]
[1672953700986,2.02217784,1253.6,1253.5,0.05684057]
[1672953701200,2.01817784,1253.6,1253.5,0.05684057]
[1672953701620,7.01817784,1253.6,1253.5,0.05684057]
[1672953701970,7.02217784,1253.6,1253.5,0.05684057]
[1672953702703,10.60806671,1253.6,1253.5,0.05684057]
[1672953704433,10.60672444,1253.6,1253.5,0.05684057]
[1672953705506,22.98358754,1253.6,1253.5,0.05684057]
[1672953705751,27.16270317,1253.6,1253.5,0.05684057]
[1672953706575,15.00656754,1253.6,1253.5,0.05684057]
[1672953706910,10.60559811,1253.6,1253.5,0.05684057]
[1672953707521,18.58261811,1253.6,1253.5,0.05684057]
[1672953708280,10.60559811,1253.6,1253.5,0.05684057]
[1672953711086,18.58261811,1253.6,1253.5,0.05684057]
[1672953711301,17.98391811,1253.6,1253.5,0.05684057]
[1672953712766,10.00689811,1253.6,1253.5,0.05684057]
[1672953713394,33.93795811,1253.6,1253.5,0.05684057]
[1672953713632,34.54102317,1253.6,1253.5,0.05684057]
[1672953713983,10.00622952,1253.6,1253.5,0.05684057]
[1672953715732,17.98324952,1253.6,1253.5,0.05684057]
[1672953715942,25.96026952,1253.6,1253.5,0.05684057]
[1672953716171,17.98324952,1253.6,1253.5,0.05684057]
[1672953719216,17.9833153,1253.6,1253.5,0.05684057]
[1672953719557,10.00625436,1253.6,1253.5,0.05684057]
[1672953721459,7.98427003,1253.6,1253.5,9.41550057]
[1672953721627,7.38838466,1253.6,1253.5,38.04774179]
[1672953721842,4.17677065,1253.6,1253.5,38.04774179]
[1672953722087,4.17277065,1253.6,1253.5,30.07008179]
[1672953722299,4.17277065,1253.6,1253.5,30.55648304]
[1672953722489,2.38438466,1253.6,1253.5,30.55648304]
[1672953722682,2.38438466,1253.6,1253.5,30.55351186]
[1672953722888,5.36465469,1253.6,1253.5,30.55351186]
[1672953723105,2.38838466,1253.6,1253.5,30.55351186]
[1672953723311,5.36465469,1253.6,1253.5,30.55351186]
[1672953723519,2.38838466,1253.6,1253.5,30.55351186]
[1672953723729,2.38438466,1253.6,1253.5,30.55351186]
[1672953725108,5.36465469,1253.6,1253.5,30.55351186]
[1672953725293,5.36865469,1253.6,1253.5,30.55351186]
[1672953725974,5.36865469,1253.6,1253.5,8.09752939]
[1672953726186,2.98427003,1253.6,1253.5,8.09752939]
[1672953726402,2.98027003,1253.6,1253.5,16.07518939]
[1672953726716,3.03763973,1253.6,1253.5,0.11986939]
[1672953727032,3.71602026,1253.6,1253.5,8.03152939]
[1672953727191,0.73514435,1253.6,1253.5,8.09752939]
[1672953727937,4.31055117,1253.6,1253.5,0.11986939]
[1672953728163,4.31255117,1253.6,1253.5,0.05386939]
[1672953728373,4.31055117,1253.6,1253.5,0.05386939]
[1672953729972,4.31055117,1253.6,1253.5,8.03152939]
[1672953730123,4.31055117,1253.6,1253.5,8.09752939]
[1672953730812,4.35771565,1253.6,1253.5,8.09752939]
[1672953731004,4.30771565,1253.6,1253.5,16.07518939]
[1672953731219,4.30771565,1253.6,1253.5,8.09752939]
[1672953737894,4.30771565,1253.6,1253.5,0.11986939]
[1672953738146,4.30771565,1253.6,1253.5,0.05386939]
[1672953743324,4.31401091,1253.6,1253.5,0.05386939]
[1672953743535,0.73230883,1253.6,1253.5,0.05386939]
[1672953745060,4.31416256,1253.6,1253.5,0.05386939]
[1672953747945,14.55516256,1253.6,1253.5,0.05386939]
[1672953748154,14.55916256,1253.6,1253.5,0.05386939]
[1672953748836,22.53618256,1253.6,1253.5,0.05386939]
[1672953750905,14.55916256,1253.6,1253.5,0.05386939]
[1672953752002,22.53618256,1253.6,1253.5,0.05386939]
[1672953754494,22.53618256,1253.6,1253.5,0.04993715]
[1672953755641,14.55916256,1253.6,1253.5,0.04993715]
[1672953757504,14.60916256,1253.6,1253.5,0.04993715]
[1672953757837,14.55916256,1253.6,1253.5,0.04993715]
[1672953758451,38.49022256,1253.6,1253.5,0.04993715]
[1672953759755,39.08748446,1253.6,1253.5,0.04993715]
[1672953760671,52.8268674,1253.6,1253.5,0.04993715]
[1672953761082,61.34965449,1253.6,1253.5,0.04494344]
[1672953761321,53.37263449,1253.6,1253.5,0.04494344]
[1672953761853,53.37388909,1253.6,1253.5,0.04494344]
[1672953762044,49.43769691,1253.6,1253.5,0.04494344]
[1672953762238,25.50663691,1253.6,1253.5,0.04494344]
[1672953762454,32.7192872,1253.6,1253.5,0.04494344]
[1672953762679,24.7422672,1253.6,1253.5,0.04494344]
[1672953762876,32.7192872,1253.6,1253.5,0.04494344]
[1672953763090,53.97416618,1253.6,1253.5,3.44e-06]
[1672953763303,57.45272543,1253.6,1253.5,3.44e-06]
[1672953763551,57.45272543,1253.6,1253.4,0.06966836]
[1672953763704,29.53178,1253.5,1253.4,8.36e-06]
[1672953763909,29.53178,1253.5,1253.3,0.14080014]
[1672953763910,43.00494504,1253.5,1253.3,0.14080014]
[1672953764119,8.1640118,1253.4,1253.3,0.14080014]
[1672953764382,32.7016818,1253.4,1253.3,0.14080014]
[1672953764810,42.23966775,1253.4,1253.3,0.14080014]
[1672953764959,42.718227,1253.4,1253.2,0.15547619]
[1672953765173,8.76264502,1253.3,1253.2,0.15547619]
[1672953765445,12.57087951,1253.3,1253.1,0.15597103]
[1672953765672,8.16747326,1253.3,1253.1,0.15597103]
[1672953765969,8.16747326,1253.3,1253.1,15.96637103]
[1672953765970,7.9797347,1253.2,1253.1,15.96637103]
[1672953766182,7.9837347,1253.2,1253.1,24.01257103]
[1672953766331,7.9837347,1253.2,1253.1,3.28717567]
[1672953766545,7.9837347,1253.2,1253.1,0.00597103]
[1672953767186,10.36650643,1253.2,1253.1,0.00597103]
[1672953767710,10.3710406,1253.2,1253.1,0.00597103]
[1672953767928,7.98826887,1253.2,1253.1,0.00597103]
[1672953768577,11.48826887,1253.2,1253.1,0.00597103]
[1672953768764,14.65656913,1253.2,1253.1,0.00597103]
[1672953771096,22.63613913,1253.2,1253.1,0.00597103]
[1672953771644,14.65656913,1253.2,1253.1,0.00597103]
[1672953772432,22.63613913,1253.2,1253.1,0.00597103]
[1672953773273,40.1559286,1253.2,1253.1,0.00597103]
[1672953773520,38.5906845,1253.2,1253.1,0.00597103]
[1672953773734,38.59066949,1253.2,1253.1,0.00597103]
[1672953773964,35.61554443,1253.2,1253.1,0.00597103]
[1672953774172,38.59069457,1253.2,1253.1,0.00597103]
[1672953774400,44.14616661,1253.2,1253.1,0.00597103]
[1672953774729,39.60469394,1253.2,1253.1,0.00597103]
[1672953775178,39.07887277,1253.2,1253.1,0.00597103]
[1672953775649,36.10469394,1253.2,1253.1,0.00597103]
[1672953776399,41.24603205,1253.2,1253.1,0.00597103]
[1672953776584,41.24603203,1253.2,1253.1,0.00597103]
[1672953777130,31.69786173,1253.2,1253.1,0.00597103]
[1672953777742,15.73872173,1253.2,1253.1,0.00597103]
[1672953778374,39.67743173,1253.2,1253.1,0.00597103]
[1672953778580,7.9802,1253.1,1253.0,0.15901537]
[1672953778797,11.58068195,1253.1,1253.0,0.15901537]
[1672953779127,13.36431796,1253.1,1253.0,0.15901537]
[1672953779345,11.58068195,1253.1,1253.0,0.15901537]
[1672953779937,13.36434008,1253.1,1253.0,0.15901537]
[1672953780152,19.56088195,1253.1,1253.0,0.15901537]
[1672953780407,11.58068195,1253.1,1253.0,0.15901537]
[1672953780558,19.56088195,1253.1,1253.0,0.15901537]
[1672953781212,21.34463947,1253.1,1253.0,0.15901537]
[1672953781455,13.36443947,1253.1,1253.0,8.13985537]
[1672953781608,13.36443947,1253.1,1253.0,8.20585537]
[1672953781827,13.36443947,1253.1,1253.0,0.22501537]
[1672953782054,13.36443947,1253.1,1253.0,0.15901537]
[1672953782297,13.36443947,1253.1,1253.0,8.13985537]
[1672953782450,13.36443947,1253.1,1253.0,0.22501537]
[1672953782665,13.36443947,1253.1,1253.0,0.15901537]
[1672953782928,19.56088195,1253.1,1253.0,0.15901537]
[1672953783141,11.58068195,1253.1,1253.0,0.15901537]
[1672953784352,13.36398562,1253.1,1253.0,0.15901537]
[1672953785975,13.36398562,1253.1,1253.0,8.13985537]
[1672953786195,13.36398562,1253.1,1253.0,8.20585537]
[1672953786362,13.36398562,1253.1,1253.0,16.18669537]
[1672953787240,13.36398562,1253.1,1253.0,8.20585537]
[1672953788969,13.36398562,1253.1,1253.0,16.18669537]
[1672953789186,13.36398562,1253.1,1253.0,8.20585537]
[1672953790484,13.41398562,1253.1,1253.0,8.20585537]
[1672953790655,13.36398562,1253.1,1253.0,8.20585537]
[1672953791341,11.58068195,1253.1,1253.0,8.20585537]
[1672953791715,14.55451974,1253.1,1253.0,8.20585537]
[1672953793096,28.13636815,1253.1,1253.0,0.22501537]
[1672953793303,28.13636815,1253.1,1253.0,0.15901537]
[1672953794278,40.10571766,1253.1,1253.0,0.15901537]
[1672953795618,32.12551766,1253.1,1253.0,0.15901537]
[1672953796264,24.14531766,1253.1,1253.0,0.15901537]
[1672953796496,16.16511766,1253.1,1253.0,0.15901537]
[1672953796936,21.17147987,1253.1,1253.0,0.15901537]
[1672953797126,8.58145882,1253.1,1253.0,0.15901537]
[1672953797336,8.58145882,1253.1,1253.0,24.10153537]
[1672953797337,7.98255882,1253.1,1253.0,24.10153537]
[1672953797652,10.36550416,1253.1,1253.0,32.14837537]
[1672953798257,7.98255882,1253.1,1253.0,16.18669537]
[1672953798680,7.98255882,1253.1,1253.0,24.16753537]
[1672953798981,5.004,1253.1,1253.0,24.16753537]
[1672953799671,5.004,1253.1,1253.0,24.16446934]
[1672953799981,7.98577148,1253.1,1253.0,16.18362934]
[1672953800170,8.57952375,1253.1,1253.0,0.22194934]
[1672953800364,8.57952375,1253.1,1253.0,0.15594934]
[1672953801209,8.57952375,1253.1,1253.0,8.13678934]
[1672953801458,8.57952375,1253.1,1253.0,8.20278934]
[1672953802658,8.57952375,1253.1,1253.0,24.16446934]
[1672953804207,8.57952375,1253.1,1253.0,32.14530934]
[1672953804501,2.9888436,1253.1,1253.0,35.38024157]
[1672953804831,2.98476485,1253.1,1253.0,35.38024157]
[1672953811396,2.98476485,1253.1,1253.0,32.14530934]
[1672953816866,5.3718626,1253.1,1253.0,32.14530934]
[1672953817083,2.98876485,1253.1,1253.0,32.14530934]
[1672953817309,2.98476485,1253.1,1253.0,32.14530934]
[1672953819400,2.98476485,1253.1,1253.0,24.16446934]
[1672953821866,2.98476485,1253.1,1253.0,0.21938341]
[1672953822041,11.62804713,1253.1,1253.0,0.15338341]
[1672953822209,11.63204713,1253.1,1253.0,0.15338341]
[1672953822649,11.63204713,1253.1,1253.0,8.13422341]
[1672953822650,3.65184713,1253.1,1253.0,8.13422341]
[1672953822862,3.64784713,1253.1,1253.0,8.20022341]
[1672953823849,0.66308228,1253.1,1253.0,0.21938341]
[1672953824069,12.21880603,1253.1,1253.0,0.15338341]
[1672953824369,4.24260603,1253.1,1253.0,0.15338341]
[1672953824582,9.23860603,1253.1,1253.0,0.15338341]
[1672953824798,9.24260603,1253.1,1253.0,0.15338341]
[1672953826052,17.22280603,1253.1,1253.0,0.15338341]
[1672953826405,9.24260603,1253.1,1253.0,0.15338341]
[1672953827399,17.22280603,1253.1,1253.0,0.15338341]
[1672953827784,25.20300603,1253.1,1253.0,0.15338341]
[1672953828001,33.18320603,1253.1,1253.0,0.15338341]
[1672953830718,33.18630396,1253.1,1253.0,0.15338341]
[1672953834597,29.60768228,1253.1,1253.0,0.15338341]
[1672953836322,25.20575212,1253.1,1253.0,0.15338341]
[1672953836965,21.62748228,1253.1,1253.0,0.15338341]
[1672953837498,29.7913273,1253.1,1253.0,0.15338341]
[1672953837861,25.61663179,1253.1,1253.0,0.15338341]
[1672953838073,29.7913273,1253.1,1253.0,0.15338341]
[1672953838281,33.59683179,1253.1,1253.0,0.15338341]
[1672953838615,38.23009301,1253.1,1253.0,0.15338341]
[1672953838831,42.40478852,1253.1,1253.0,0.15338341]
[1672953839610,37.7715273,1253.1,1253.0,0.15338341]
[1672953841383,33.59683179,1253.1,1253.0,0.15338341]
[1672953841542,37.7715273,1253.1,1253.0,0.15338341]
[1672953841963,42.40478852,1253.1,1253.0,0.15338341]
[1672953842999,37.7715273,1253.1,1253.0,0.15338341]
[1672953844613,38.3704273,1253.1,1253.0,0.15338341]
[1672953845488,38.3704273,1253.1,1253.0,0.13804507]
[1672953847470,37.7715273,1253.1,1253.0,0.13804507]
[1672953848059,42.40478852,1253.1,1253.0,0.13804507]
[1672953848275,37.7715273,1253.1,1253.0,0.13804507]
[1672953848484,42.40478852,1253.1,1253.0,0.13804507]
[1672953848919,37.7715273,1253.1,1253.0,0.13804507]
[1672953849132,46.44029301,1253.1,1253.0,0.13804507]
[1672953849361,51.0887153,1253.1,1253.0,0.13804507]
[1672953849608,49.91885226,1253.1,1253.0,0.13804507]
[1672953850013,54.08871231,1253.1,1253.0,0.13804507]
[1672953850243,50.51775226,1253.1,1253.0,4.507e-05]
[1672953850377,58.91175226,1253.1,1253.0,4.507e-05]
[1672953851258,50.93155226,1253.1,1253.0,4.507e-05]
[1672953851464,58.91175226,1253.1,1253.0,4.507e-05]
[1672953851678,3.5,1253.0,1252.9,0.20401299]
[1672953851866,3.5,1253.0,1252.9,1.299e-05]
[1672953851867,49.0624996,1253.0,1252.9,1.299e-05]
[1672953852053,49.0664996,1253.0,1252.9,1.299e-05]
[1672953852483,3.5,1252.9,1252.8,0.89438005]
[1672953852741,35.88101128,1252.9,1252.8,0.89438005]
[1672953852909,48.86649128,1252.9,1252.8,0.89438005]
[1672953853097,37.38501128,1252.9,1252.8,0.89438005]
[1672953853308,58.99360373,1252.9,1252.8,0.89438005]
[1672953853540,35.75754815,1252.9,1252.8,0.89438005]
[1672953853728,27.36354815,1252.9,1252.8,0.04318005]
[1672953853960,35.32898713,1252.9,1252.8,0.04318005]
[1672953854148,51.06194713,1252.9,1252.8,0.04318005]
[1672953854950,3.5,1252.8,1252.7,0.16702497]
[1672953855162,24.35399626,1252.8,1252.7,0.16702497]
[1672953855372,24.35799626,1252.8,1252.7,0.16702497]
[1672953855681,11.96826432,1252.8,1252.7,0.16702497]
[1672953856096,11.96826432,1252.8,1252.7,8.14977497]
[1672953856306,7.97911481,1252.8,1252.7,0.23302497]
[1672953856642,7.97927228,1252.8,1252.7,0.16702497]
[1672953856953,16.56049228,1252.8,1252.7,0.16702497]
[1672953857696,8.57837228,1252.8,1252.7,0.16702497]
[1672953858008,7.97927228,1252.8,1252.7,0.16702497]
[1672953858324,15.96139228,1252.8,1252.7,0.16702497]
[1672953860369,24.53918609,1252.8,1252.7,0.16702497]
[1672953860600,16.55706609,1252.8,1252.7,0.16702497]
[1672953860787,24.53918609,1252.8,1252.7,0.16702497]
[1672953860996,27.85781412,1252.8,1252.7,0.16702497]
[1672953861207,24.28686803,1252.8,1252.7,0.16702497]
[1672953861473,27.85781412,1252.8,1252.7,0.16702497]
[1672953861852,24.28686803,1252.8,1252.7,0.16702497]
[1672953862287,16.30474803,1252.8,1252.7,0.16702497]
[1672953862614,19.87569412,1252.8,1252.7,0.16702497]
[1672953862947,16.30474803,1252.8,1252.7,0.16702497]